fUSD/lending_fUSD_20250823
["ID","MTS","AMOUNT","RATE_DAILY","PERIOD"]
[381029162,1755956682504,-1762.52,0.00032457,120]
[381029163,1755956682530,-1762.52,0.00032457,120]
[381029164,1755956682556,-1762.52,0.00032457,120]
[381029165,1755956682581,-1762.52,0.00032457,120]
[381029166,1755956682607,-1762.52,0.00032457,120]
[381029167,1755956682633,-1762.52,0.00032457,120]
[381029168,1755956682658,-1762.52,0.00032457,120]
[381029169,1755956682685,-1762.52,0.00032457,120]
[381029170,1755956682711,-1762.52,0.00032457,120]
[381029171,1755956682736,-1762.52,0.00032457,120]
[381029172,1755956682763,-1762.75519024,0.00032457,120]
[381029173,1755956682788,-159.76735646,0.00032457,120]
[381029174,1755956682813,-814.1045147,0.00032457,120]
[381029175,1755956682840,-1109.59298588,0.00032457,120]
[381029176,1755956682865,-2000.0,0.00032457,120]
[381029177,1755956682891,-900.4889809,0.00032457,90]
[381029178,1755956682920,-317.30688894,0.00032457,120]
[381029179,1755956682944,-525.326028,0.00032457,30]
[381029180,1755956682969,-392.61572785,0.00032457,30]
[381029181,1755956682996,-964.15219969,0.00032457,120]
[381029182,1755956683021,-337.81441326,0.00032457,30]
[381029183,1755956683045,-1463.10272282,0.00032457,30]
[381029184,1755956683070,-362.38027169,0.00032457,30]
[381029185,1755956683094,-900.74043559,0.00032457,30]
[381029186,1755956683118,-1000.0,0.00032457,30]
[381029187,1755956683142,-395.10156392,0.00032457,30]
[381029188,1755956683166,-759.98509444,0.00032457,30]
[381029189,1755956683190,-2960.25405721,0.00032457,30]
[381029190,1755956683213,-1494.76854113,0.00032457,30]
[381029191,1755956683238,-1012.1314065,0.00032457,30]
[381029192,1755956683263,-609.61171114,0.00032457,120]
[381029193,1755956683289,-1199.85110314,0.00032457,30]
[381029194,1755956683313,-266.03140555,0.00032457,120]
[381029195,1755956683339,-390.05526103,0.00032457,30]
[381029196,1755956683363,-496.73867161,0.00032457,30]
[381029197,1755956683387,-601.92839318,0.00032457,120]
[381029198,1755956683410,-464.32316257,0.00032457,120]
[381029199,1755956683436,-651.12927929,0.00032457,120]
[381029200,1755956683459,-882.15360153,0.00032457,30]
[381029201,1755956683483,-2213.22599518,0.00032457,30]
[381029202,1755956683507,-1228.35650342,0.00032457,120]
[381029203,1755956683532,-890.71711511,0.00032457,30]
[381029204,1755956683556,-305.02189617,0.00032457,120]
[381029205,1755956683580,-377.80154269,0.00032457,90]
[381029206,1755956683605,-953.64121825,0.00032457,30]
[381029207,1755956683629,-1015.34320092,0.00032457,120]
[381029208,1755956683653,-401.57160365,0.00032457,120]
[381029209,1755956683678,-959.42745013,0.00032457,30]
[381029210,1755956683704,-1078.98675054,0.00032457,120]
[381029211,1755956683731,-544.55090914,0.00032457,120]
[381029212,1755956683755,-800.96535844,0.00032457,120]
[381029213,1755956683779,-214.70927155,0.00032457,30]
[381029214,1755956683805,-888.2359778,0.00032457,60]
[381029215,1755956683830,-991.17410033,0.00032457,30]
[381029216,1755956683855,-1600.92744289,0.00032457,120]
[381029217,1755956683879,-185.00619208,0.00032457,120]
[381029218,1755956683904,-865.45127976,0.00032457,30]
[381029219,1755956683928,-2000.0,0.00032457,30]
[381029220,1755956683952,-578.80611979,0.00032457,120]
[381029221,1755956683976,-1043.48611715,0.00032457,30]
[381029222,1755956684243,-362.21926944,0.00032457,30]
[381029223,1755956684269,-479.68176544,0.00032457,120]
[381029224,1755956684296,-256.21344316,0.00032457,120]
[381029225,1755956684327,-734.76359004,0.00032457,120]
[381029226,1755956684353,-427.1686551,0.00032457,30]
[381029227,1755956684378,-200000.0,0.00032457,120]
[381029228,1755956684402,-200000.0,0.00032457,120]
[381029229,1755956684426,-2060.6376505,0.00032457,30]
[381029230,1755956684450,-166.66666667,0.00032457,120]
[381029231,1755956684473,-2505.32796513,0.00032457,120]
[381029232,1755956684496,-1891.46059975,0.00032457,120]
[381029233,1755956684522,-963.06349623,0.00032457,120]
[381029234,1755956684547,-165.7,0.00032457,30]
[381029235,1755956684571,-583.33837191,0.00032457,120]
[381029236,1755956684595,-500.0,0.00032457,120]
[381029237,1755956704165,-193.4641,0.00021,30]
[381029238,1755956704208,-3226.23,0.00021945,30]
[381029239,1755956704237,-2111.02298134,0.00022,30]
[381029240,1755956704293,-451.97376967,0.00027,30]
[381029241,1755956704321,-458.60200496,0.00027,30]
[381029242,1755956704348,-160.0,0.00027,30]
[381029243,1755956704374,-212.10093811,0.00027,30]
[381029244,1755956704416,-174.17754056,0.00027397,30]
[381029245,1755956704459,-600.0,0.00027397,80]
[381029246,1755956704504,-174.17754056,0.00027699,30]
[381029247,1755956704546,-2171.83255711,0.00028,30]
[381029248,1755956704591,-174.17754056,0.00028,30]
[381029249,1755956704633,-3226.23,0.00028169,30]
[381029250,1755956704676,-174.17754056,0.00028301,30]
[381029251,1755956704722,-6591.89,0.00028535,30]
[381029252,1755956704761,-1002.0,0.000286,30]
[381029253,1755956704801,-6000.0,0.00028748,30]
[381029254,1755956704843,-250.0,0.00028767,60]
[381029255,1755956704886,-500.0,0.00028767,60]
[381029256,1755956704950,-500.0,0.00028767,60]
[381029257,1755956705001,-500.0,0.00028767,60]
[381029258,1755956705045,-500.0,0.00028767,60]
[381029259,1755956705089,-500.0,0.00028767,60]
[381029260,1755956705131,-500.0,0.00028767,60]
[381029261,1755956705171,-150.0,0.00028767,60]
[381029262,1755956705213,-150.0,0.00028767,60]
[381029263,1755956705253,-150.0,0.00028767,60]
[381029264,1755956705291,-200.0,0.00028767,60]
[381029265,1755956705331,-200.0,0.00028767,60]
[381029266,1755956705369,-1334.0,0.00028767,60]
[381029267,1755956705404,-586.0,0.00028767,60]
[381029268,1755956705440,-214.94581657,0.00028767,60]
[381029269,1755956705477,-150.0,0.00028767,60]
[381029270,1755956705513,-500.0,0.00028767,60]
[381029271,1755956705551,-500.0,0.00028767,60]
[381029272,1755956705592,-150.0,0.00028767,60]
[381029273,1755956705630,-150.0,0.00028767,60]
[381029274,1755956705667,-150.0,0.00028767,60]
[381029275,1755956705710,-421.0,0.00028767,60]
[381029276,1755956705760,-633.86877784,0.00028767,120]
[381029277,1755956705807,-174.0,0.00028787,120]
[381029278,1755956705850,-174.0,0.00028877,120]
[381029279,1755956705894,-166.0,0.00028969,120]
[381029280,1755956705937,-673.0,0.00029,30]
[381029281,1755956705977,-3600.0,0.00029,30]
[381029282,1755956706016,-937.0,0.00029015,120]
[381029283,1755956706051,-500.0,0.00029041,60]
[381029284,1755956706090,-500.0,0.00029041,60]
[381029285,1755956706125,-500.0,0.00029041,60]
[381029286,1755956706160,-500.0,0.00029041,60]
[381029287,1755956706195,-500.0,0.00029041,60]
[381029288,1755956706232,-500.0,0.00029041,60]
[381029289,1755956706265,-213.16,0.00029041,60]
[381029290,1755956706300,-200.0,0.00029041,60]
[381029291,1755956706335,-150.0,0.00029041,60]
[381029292,1755956706369,-1334.0,0.00029041,60]
[381029293,1755956706402,-586.0,0.00029041,60]
[381029294,1755956706435,-150.0,0.00029041,60]
[381029295,1755956706469,-500.0,0.00029041,60]
[381029296,1755956706504,-500.0,0.00029041,60]
[381029297,1755956706540,-150.0,0.00029041,60]
[381029298,1755956706575,-150.0,0.00029041,60]
[381029299,1755956706608,-421.0,0.00029041,60]
[381029300,1755956706644,-271.0,0.00029086,120]
[381029301,1755956706680,-169.0,0.00029115,120]
[381029302,1755956706715,-1586.71,0.000292,60]
[381029303,1755956706749,-337.0,0.00029204,120]
[381029304,1755956706784,-203.0,0.00029207,120]
[381029305,1755956706820,-562.0,0.00029236,120]
[381029306,1755956706857,-500.0,0.00029315,60]
[381029307,1755956706893,-500.0,0.00029315,60]
[381029308,1755956706929,-450.0,0.00029315,60]
[381029309,1755956706964,-500.0,0.00029315,60]
[381029310,1755956706998,-500.0,0.00029315,60]
[381029311,1755956707031,-500.0,0.00029315,60]
[381029312,1755956707065,-1334.0,0.00029315,60]
[381029313,1755956707099,-586.0,0.00029315,60]
[381029314,1755956707130,-150.0,0.00029315,60]
[381029315,1755956707163,-367.83893894,0.00029315,60]
[381029316,1755956707195,-404.65787595,0.00029315,60]
[381029317,1755956707227,-150.0,0.00029315,60]
[381029318,1755956707259,-200.0,0.00029315,60]
[381029319,1755956707296,-421.0,0.00029315,60]
[381029320,1755956707331,-413.98033407,0.00029452,120]
[381029321,1755956707365,-500.0,0.00029589,60]
[381029322,1755956707399,-150.0,0.00029589,60]
[381029323,1755956707431,-500.0,0.00029589,60]
[381029324,1755956707464,-500.0,0.00029589,60]
[381029325,1755956707497,-500.0,0.00029589,60]
[381029326,1755956707532,-1334.0,0.00029589,60]
[381029327,1755956707569,-586.0,0.00029589,60]
[381029328,1755956707603,-200.0,0.00029589,60]
[381029329,1755956707638,-150.0,0.00029589,60]
[381029330,1755956707672,-421.0,0.00029589,60]
[381029331,1755956708410,-253.0,0.00029718,120]
[381029332,1755956708517,-6591.89,0.00029842,30]
[381029333,1755956708547,-500.0,0.00029863,60]
[381029334,1755956708575,-500.0,0.00029863,60]
[381029335,1755956708601,-285.64879518,0.00029863,60]
[381029336,1755956708627,-1334.0,0.00029863,60]
[381029337,1755956708653,-586.0,0.00029863,60]
[381029338,1755956708678,-150.0,0.00029863,60]
[381029339,1755956708705,-1002.0,0.000299,30]
[381029340,1755956708733,-206.0,0.0003,30]
[381029341,1755956708757,-787.86949546,0.0003,120]
[381029342,1755956708783,-994.38627862,0.0003,60]
[381029343,1755956708814,-372.0,0.0003,120]
[381029344,1755956708840,-313.0,0.0003,120]
[381029345,1755956708865,-484.85907778,0.0003,60]
[381029346,1755956708891,-673.0,0.0003,30]
[381029347,1755956708923,-204.78627872,0.0003,30]
[381029348,1755956708950,-3599.99999908,0.0003,31]
[381029349,1755956708976,-850.5,0.0003,120]
[381029350,1755956709003,-193.26333016,0.0003,30]
[381029351,1755956709028,-178.39330793,0.0003,120]
[381029352,1755956709053,-1093.38964712,0.0003,120]
[381029353,1755956709079,-370.26077889,0.0003,120]
[381029354,1755956709104,-180.0,0.0003,30]
[381029355,1755956709129,-700.0,0.0003,120]
[381029356,1755956709157,-1413.7340131,0.0003,120]
[381029357,1755956709182,-458.60200496,0.0003,30]
[381029358,1755956709208,-160.0,0.0003,30]
[381029359,1755956709233,-844.27675029,0.0003,30]
[381029360,1755956709258,-212.10093811,0.0003,30]
[381029361,1755956709284,-1623.73291906,0.0003013,30]
[381029362,1755956709308,-307.66081489,0.0003013,120]
[381029363,1755956709334,-1000.0,0.00030136,120]
[381029364,1755956709359,-154.25,0.00030136,120]
[381029365,1755956709384,-500.0,0.00030137,60]
[381029366,1755956709411,-500.0,0.00030137,60]
[381029367,1755956709440,-1334.0,0.00030137,60]
[381029368,1755956709466,-586.0,0.00030137,60]
[381029369,1755956709491,-250.0,0.00030137,60]
[381029370,1755956709517,-1000.0,0.00030164,120]
[381029371,1755956709543,-1000.0,0.00030191,120]
[381029372,1755956709570,-1000.0,0.00030219,120]
[381029373,1755956709595,-1000.0,0.00030246,120]
[381029374,1755956709620,-1000.0,0.00030273,120]
[381029375,1755956709645,-154.25,0.00030273,120]
[381029376,1755956709671,-1000.0,0.00030301,120]
[381029377,1755956709697,-1000.0,0.00030328,120]
[381029378,1755956709722,-1000.0,0.00030356,120]
[381029379,1755956709748,-1000.0,0.00030383,120]
[381029380,1755956709774,-1000.0,0.0003041,120]
[381029381,1755956709801,-154.25,0.0003041,120]
[381029382,1755956709827,-500.0,0.00030411,60]
[381029383,1755956709852,-298.05435818,0.00030411,60]
[381029384,1755956709879,-1334.0,0.00030411,60]
[381029385,1755956709909,-586.0,0.00030411,60]
[381029386,1755956709938,-1000.0,0.00030438,120]
[381029387,1755956709965,-1000.0,0.00030465,120]
[381029388,1755956709996,-210.0,0.0003048,30]
[381029389,1755956710024,-519.56688215,0.00030493,120]
[381029390,1755956710052,-169.0,0.00030571,120]
[381029391,1755956710081,-500.0,0.00030685,60]
[381029392,1755956710107,-1334.0,0.00030685,60]
[381029393,1755956710206,-586.0,0.00030685,60]
[381029394,1755956710233,-250.0,0.000308,30]
[381029395,1755956710258,-600.0,0.00030822,80]
[381029396,1755956710283,-150.0,0.0003085,120]
[381029397,1755956710308,-500.0,0.00030959,60]
[381029398,1755956710335,-1334.0,0.00030959,60]
[381029399,1755956710360,-586.0,0.00030959,60]
[381029400,1755956710386,-1978.23144515,0.00031,120]
[381029401,1755956710411,-673.0,0.00031,30]
[381029402,1755956710436,-1800.0,0.00031,32]
[381029403,1755956710462,-150.0,0.00031076,120]
[381029404,1755956710489,-6591.89,0.00031149,30]
[381029405,1755956710517,-1002.0,0.000312,30]
[381029406,1755956710545,-150.0,0.00031217,120]
[381029407,1755956710578,-500.0,0.00031233,60]
[381029408,1755956710604,-1334.0,0.00031233,60]
[381029409,1755956710629,-586.0,0.00031233,60]
[381029410,1755956710655,-150.0,0.00031233,120]
[381029411,1755956710682,-210.0,0.0003136,30]
[381029412,1755956710709,-150.0,0.00031404,120]
[381029413,1755956710735,-200.0,0.0003149,120]
[381029414,1755956710759,-500.0,0.00031507,60]
[381029415,1755956710784,-1334.0,0.00031507,60]
[381029416,1755956710809,-586.0,0.00031507,60]
[381029417,1755956710840,-150.0,0.00031677,120]
[381029418,1755956710866,-500.0,0.00031781,60]
[381029419,1755956710891,-1334.0,0.00031781,60]
[381029420,1755956710919,-586.0,0.00031781,60]
[381029421,1755956710945,-1000.0,0.000318,120]
[381029422,1755956710969,-150.0,0.00031808,120]
[381029423,1755956710998,-2234.97274935,0.00032,120]
[381029424,1755956711023,-1800.0,0.00032,33]
[381029425,1755956711048,-319.90944787,0.00032,120]
[381029426,1755956711078,-700.0,0.00032,120]
[381029427,1755956711103,-150.0,0.0003204,120]
[381029428,1755956711129,-150.0,0.00032049,120]
[381029429,1755956711153,-500.0,0.00032055,60]
[381029430,1755956711179,-1334.0,0.00032055,60]
[381029431,1755956711204,-586.0,0.00032055,60]
[381029432,1755956711231,-150.0,0.00032135,120]
[381029433,1755956711257,-212.0,0.0003223,30]
[381029434,1755956711282,-210.0,0.0003223,30]
[381029435,1755956711308,-150.0,0.00032313,120]
[381029436,1755956711336,-500.0,0.00032329,60]
[381029437,1755956711362,-1334.0,0.00032329,60]
[381029438,1755956711388,-586.0,0.00032329,60]
[381029439,1755956711415,-150.0,0.00032334,120]
[381029440,1755956711441,-150.0,0.0003235,120]
[381029441,1755956711466,-6591.89,0.00032456,30]
[381029442,1755956711503,-1002.0,0.000325,120]
[381029443,1755956711528,-150.0,0.00032508,120]
[381029444,1755956711553,-500.0,0.00032603,60]
[381029445,1755956711581,-1334.0,0.00032603,60]
[381029446,1755956711606,-586.0,0.00032603,60]
[381029447,1755956711632,-150.0,0.00032617,120]
[381029448,1755956711657,-35506.95505813,0.000328,30]
[381029449,1755956711681,-1000.0,0.000328,120]
[381029450,1755956711706,-689.0,0.00032807,120]
[381029451,1755956711731,-460.0,0.00032807,120]
[381029452,1755956711757,-689.0,0.00032807,120]
[381029453,1755956711783,-393.68024212,0.0003286,120]
[381029454,1755956711809,-1000.0,0.00032876,30]
[381029455,1755956711837,-1000.0,0.00032876,30]
[381029456,1755956711870,-1000.0,0.00032876,30]
[381029457,1755956711896,-1000.0,0.00032876,30]
[381029458,1755956711924,-1000.0,0.00032876,30]
[381029459,1755956711949,-1000.0,0.00032876,30]
[381029460,1755956711975,-1000.0,0.00032876,30]
[381029461,1755956712000,-1042.35747886,0.00032876,30]
[381029462,1755956712025,-559.67836563,0.00032877,60]
[381029463,1755956712050,-1334.0,0.00032877,60]
[381029464,1755956712075,-586.0,0.00032877,60]
[381029465,1755956712100,-4000.0,0.00032877,30]
[381029466,1755956712126,-150.0,0.00032913,120]
[381029467,1755956712151,-150.0,0.00032936,120]
[381029468,1755956712179,-1832.66,0.00032962,60]
[381029469,1755956712205,-150.0,0.00032987,120]
[381029470,1755956712232,-3755.11,0.00033,30]
[381029471,1755956712258,-2867.55652657,0.00033,120]
[381029472,1755956712284,-1800.0,0.00033,34]
[381029473,1755956712309,-255.66424937,0.00033,120]
[381029474,1755956712337,-1832.66,0.00033062,60]
[381029475,1755956712362,-1334.0,0.00033151,60]
[381029476,1755956712387,-586.0,0.00033151,60]
[381029477,1755956712413,-1832.66,0.00033162,60]
[381029478,1755956712440,-1832.66,0.00033262,60]
[381029479,1755956712466,-150.0,0.00033273,120]
[381029480,1755956712492,-1832.66,0.00033362,60]
[381029481,1755956712518,-1334.0,0.00033425,60]
[381029482,1755956712543,-586.0,0.00033425,60]
[381029483,1755956712571,-1832.66,0.00033462,60]
[381029484,1755956712598,-150.0,0.00033481,120]
[381029485,1755956712624,-150.0,0.00033552,120]
[381029486,1755956712650,-1832.66,0.00033562,60]
[381029487,1755956712798,-1832.66,0.00033662,60]
[381029488,1755956712825,-453.52085,0.00033667,120]
[381029489,1755956712852,-1334.0,0.00033699,60]
[381029490,1755956712878,-586.0,0.00033699,60]
[381029491,1755956712909,-1832.66,0.00033762,60]
[381029492,1755956712935,-1000.0,0.000338,120]
[381029493,1755956712961,-1002.0,0.000338,120]
[381029494,1755956712990,-1832.66,0.00033862,60]
[381029495,1755956713019,-150.0,0.00033904,120]
[381029496,1755956713045,-867.58876335,0.00033939,60]
[381029497,1755956713074,-1832.66,0.00033962,60]
[381029498,1755956713102,-1334.0,0.00033972,60]
[381029499,1755956713128,-586.0,0.00033972,60]
[381029500,1755956713154,-2858.53459346,0.00034,120]
[381029501,1755956713179,-2300.0,0.00034,30]
[381029502,1755956713204,-700.0,0.00034,120]
[381029503,1755956713230,-150.0,0.00034042,120]
[381029504,1755956713257,-1832.66,0.00034062,60]
[381029505,1755956713284,-150.0,0.00034122,120]
[381029506,1755956713310,-150.0,0.00034133,120]
[381029507,1755956713338,-1832.66,0.00034162,60]
[381029508,1755956713363,-1334.0,0.00034246,60]
[381029509,1755956713388,-586.0,0.00034246,60]
[381029510,1755956713413,-600.0,0.00034247,120]
[381029511,1755956713441,-216.66666667,0.00034248,30]
[381029512,1755956713467,-150.0,0.0003426,120]
[381029513,1755956713493,-1832.66,0.00034262,60]
[381029514,1755956713537,-1832.66,0.00034362,60]
[381029515,1755956713565,-150.0,0.00034373,120]
[381029516,1755956713591,-3226.23,0.00034394,30]
[381029517,1755956713618,-1832.66,0.00034462,60]
[381029518,1755956713645,-1334.0,0.0003452,60]
[381029519,1755956713670,-586.0,0.0003452,60]
[381029520,1755956713696,-1832.66,0.00034562,60]
[381029521,1755956713722,-150.0,0.00034585,120]
[381029522,1755956713748,-150.0,0.00034635,120]
[381029523,1755956713774,-1832.66,0.00034662,60]
[381029524,1755956713800,-1832.66,0.00034762,60]
[381029525,1755956713827,-150.0,0.00034782,120]
[381029526,1755956713852,-1334.0,0.00034794,60]
[381029527,1755956713878,-586.0,0.00034794,60]
[381029528,1755956713905,-1000.0,0.000348,120]
[381029529,1755956713935,-1832.66,0.00034862,60]
[381029530,1755956713963,-150.0,0.00034922,120]
[381029531,1755956713990,-1832.66,0.00034962,60]
[381029532,1755956714020,-3755.11,0.00035,30]
[381029533,1755956714045,-2498.53305182,0.00035,90]
[381029534,1755956714072,-2332.01625813,0.00035,30]
[381029535,1755956714098,-150.0,0.00035,120]
[381029536,1755956714123,-1488.60268813,0.00035,30]
[381029537,1755956714148,-690.96564267,0.00035,30]
[381029538,1755956714174,-10347.27860073,0.00035,120]
[381029539,1755956714200,-1832.66,0.00035062,60]
[381029540,1755956714226,-1343.47444491,0.00035068,60]
[381029541,1755956714252,-595.90779632,0.00035068,60]
[381029542,1755956714278,-1002.0,0.000351,120]
[381029543,1755956714304,-1832.66,0.00035162,60]
[381029544,1755956714331,-1832.66,0.00035262,60]
[381029545,1755956714357,-150.0,0.00035309,120]
[381029546,1755956714384,-1832.66,0.00035362,60]
[381029547,1755956714411,-1832.66,0.00035462,60]
[381029548,1755956714436,-150.0,0.00035538,120]
[381029549,1755956714463,-1832.66,0.00035562,60]
[381029550,1755956714490,-150.0,0.00035661,120]
[381029551,1755956714517,-1832.66,0.00035662,60]
[381029552,1755956714545,-150.0,0.00035753,120]
[381029553,1755956714572,-1832.66,0.00035762,60]
[381029554,1755956714598,-1832.66,0.00035862,60]
[381029555,1755956714624,-150.0,0.00035866,120]
[381029556,1755956714649,-3305.57584,0.00035888,30]
[381029557,1755956714675,-150.0,0.00035921,120]
[381029558,1755956714700,-1832.66,0.00035962,60]
[381029559,1755956714726,-2800.0,0.00036,60]
[381029560,1755956714751,-856.0900992,0.00036,120]
[381029561,1755956714776,-1091.68799538,0.00036,120]
[381029562,1755956714801,-2000.0,0.00036,36]
[381029563,1755956714827,-700.0,0.00036,120]
[381029564,1755956714854,-150.0,0.00036012,120]
[381029565,1755956714881,-150.0,0.00036048,120]
[381029566,1755956714912,-1832.66,0.00036062,60]
[381029567,1755956715334,-3305.57584,0.00036088,30]
[381029568,1755956715369,-1832.66,0.00036162,60]
[381029569,1755956715400,-150.0,0.00036216,120]
[381029570,1755956715429,-1832.66,0.00036262,60]
[381029571,1755956715458,-3305.57584,0.00036288,30]
[381029572,1755956715485,-150.0,0.00036346,120]
[381029573,1755956715515,-1832.66,0.00036362,60]
[381029574,1755956715546,-1002.0,0.000364,120]
[381029575,1755956715574,-1268.23,0.00036438,31]
[381029576,1755956715603,-1832.66,0.00036462,60]
[381029577,1755956715630,-3305.57584,0.00036488,30]
[381029578,1755956715658,-150.0,0.00036491,120]
[381029579,1755956715686,-1832.66,0.00036562,60]
[381029580,1755956715714,-150.0,0.00036632,120]
[381029581,1755956715741,-150.0,0.00036662,120]
[381029582,1755956715768,-1832.66,0.00036662,60]
[381029583,1755956715795,-3305.57584,0.00036688,30]
[381029584,1755956715823,-536.74029988,0.000367,120]
[381029585,1755956715854,-1832.66,0.00036762,60]
[381029586,1755956715883,-1832.66,0.00036862,60]
[381029587,1755956715911,-3305.57584,0.00036888,30]
[381029588,1755956715938,-1710.69124527,0.000369,120]
[381029589,1755956715967,-150.0,0.00036953,120]
[381029590,1755956715997,-1832.66,0.00036962,60]
[381029591,1755956716025,-150.0,0.00036998,120]
[381029592,1755956716053,-3755.11,0.00037,30]
[381029593,1755956716083,-1411.77426087,0.00037,30]
[381029594,1755956716113,-1000.0,0.00037,120]
[381029595,1755956716145,-5014.0,0.00037,117]
[381029596,1755956716174,-1832.66,0.00037062,60]
[381029597,1755956716201,-150.0,0.00037077,120]
[381029598,1755956716229,-3305.57584,0.00037088,30]
[381029599,1755956716256,-1268.23,0.00037123,33]
[381029600,1755956716283,-1832.66,0.00037162,60]
[381029601,1755956716309,-496.74112483,0.00037212,120]
[381029602,1755956716340,-1832.66,0.00037262,60]
[381029603,1755956716367,-3305.57584,0.00037288,30]
[381029604,1755956716395,-1832.66,0.00037362,60]
[381029605,1755956716430,-1832.66,0.00037462,60]
[381029606,1755956716456,-3305.57584,0.00037488,30]
[381029607,1755956716485,-1832.66,0.00037562,60]
[381029608,1755956716512,-150.0,0.00037595,120]
[381029609,1755956716539,-150.0,0.00037631,120]
[381029610,1755956716569,-1832.66,0.00037662,60]
[381029611,1755956716596,-600.0,0.00037671,120]
[381029612,1755956716621,-3305.57584,0.00037688,30]
[381029613,1755956716649,-1444.0,0.00037753,120]
[381029615,1755956716680,-1832.66,0.00037762,60]
[381029616,1755956716707,-1268.23,0.00037808,35]
[381029617,1755956716733,-1832.66,0.00037862,60]
[381029618,1755956716759,-204.0376616,0.0003787,120]
[381029619,1755956716785,-3305.57584,0.00037888,30]
[381029620,1755956716810,-150.0,0.00037936,120]
[381029621,1755956716837,-150.0,0.00037954,120]
[381029622,1755956716864,-1832.66,0.00037962,60]
[381029623,1755956716889,-579.91412244,0.00037999,120]
[381029624,1755956717124,-2640.56388887,0.00038,120]
[381029625,1755956717164,-161.0,0.00038,120]
[381029626,1755956717198,-1036.28592338,0.00038,120]
[381029627,1755956717227,-259.0,0.00038,120]
[381029628,1755956717255,-500.0,0.00038,120]
[381029629,1755956717283,-500.0,0.00038,120]
[381029630,1755956717310,-500.0,0.00038,120]
[381029631,1755956717339,-339.0,0.00038,120]
[381029632,1755956717368,-153.0,0.00038,120]
[381029633,1755956717394,-2000.0,0.00038,38]
[381029634,1755956717422,-700.0,0.00038,120]
[381029635,1755956717600,-150.0,0.00038001,120]
[381029636,1755956717628,-1832.66,0.00038062,60]
[381029637,1755956717655,-3305.57584,0.00038088,30]
[381029638,1755956717683,-49493.74334451,0.00038138,30]
[381029639,1755956717712,-1832.66,0.00038162,60]
[381029640,1755956717739,-150.0,0.00038258,120]
[381029641,1755956717766,-1832.66,0.00038262,60]
[381029642,1755956717793,-3305.57584,0.00038288,30]
[381029643,1755956717820,-2000.0,0.00038356,120]
[381029644,1755956717845,-2000.0,0.00038356,120]
[381029645,1755956717871,-2000.0,0.00038356,120]
[381029646,1755956717898,-2000.0,0.00038356,120]
[381029647,1755956717926,-2000.0,0.00038356,120]
[381029648,1755956717952,-2000.0,0.00038356,120]
[381029649,1755956717978,-2000.0,0.00038356,120]
[381029650,1755956718011,-2000.0,0.00038356,120]
[381029651,1755956718038,-2000.0,0.00038356,120]
[381029652,1755956718069,-2000.0,0.00038356,120]
[381029653,1755956718096,-2000.0,0.00038356,120]
[381029654,1755956718122,-2000.0,0.00038356,120]
[381029655,1755956718147,-2000.0,0.00038356,120]
[381029656,1755956718173,-2000.0,0.00038356,120]
[381029657,1755956718198,-2000.0,0.00038356,120]
[381029658,1755956718224,-2000.0,0.00038356,120]
[381029659,1755956718249,-2000.0,0.00038356,120]
[381029660,1755956718275,-2000.0,0.00038356,120]
[381029661,1755956718300,-2000.0,0.00038356,120]
[381029662,1755956718324,-2000.0,0.00038356,120]